bitfinex/quotes_ETHUSD_20250603
["timestamp","ask_amount","ask_price","bid_price","bid_amount"]
[1748961015474,1.0248,2631.3,2631.0,3.80082821]
[1748961015675,1.0248,2631.3,2630.7,8.0]
[1748961015886,4.82524341,2631.3,2630.8,3.80103296]
[1748961016103,1.0248,2631.3,2631.2,3.80054727]
[1748961016246,1.0248,2631.3,2630.6,8.60860009]
[1748961016448,1.0248,2631.3,2630.7,3.80123557]
[1748961016659,4.82527388,2631.3,2630.8,3.80108279]
[1748961017164,4.82527022,2631.3,2630.8,3.8010228]
[1748961017343,1.0248,2631.3,2630.8,3.8010228]
[1748961017546,1.0248,2631.3,2631.0,3.80071073]
[1748961017748,1.0248,2631.3,2631.0,3.80075239]
[1748961018364,0.48250651,2631.2,2630.6,0.37115374]
[1748961018564,1.0116,2630.9,2630.5,3.8015443]
[1748961018762,4.81264475,2630.9,2630.4,5.61766136]
[1748961018962,1.0116,2630.9,2630.6,3.80132695]
[1748961019191,1.0116,2630.9,2630.5,3.80148056]
[1748961019381,1.0116,2630.9,2630.6,3.80133112]
[1748961019585,1.0116,2630.9,2630.7,3.80121577]
[1748961019915,7.5398,2631.5,2630.9,3.80085644]
[1748961020065,11.33998989,2631.5,2630.9,3.80085644]
[1748961020261,7.5398,2631.5,2630.8,3.80112513]
[1748961020460,1.0434,2631.2,2630.8,3.8011128]
[1748961020691,4.844016,2631.2,2630.7,3.80120883]
[1748961020890,1.90785508,2631.2,2630.7,3.80125613]
[1748961021097,1.0434,2631.2,2630.9,3.80090283]
[1748961021360,1.0434,2631.2,2630.7,3.80125613]
[1748961021561,1.0766,2631.1,2630.5,3.80147564]
[1748961021765,4.8773841,2631.1,2630.6,3.80136998]
[1748961022276,3.8008536,2631.0,2630.5,3.80148373]
[1748961022510,1.0127,2630.9,2630.5,4.18552172]
[1748961022721,1.0127,2630.9,2630.5,0.38402964]
[1748961023003,1.0127,2630.9,2630.7,3.80125752]
[1748961023206,1.0127,2630.9,2630.8,3.80112513]
[1748961023503,1.0849,2631.3,2631.1,3.80067121]
[1748961023800,1.0849,2631.3,2631.1,0.38159907]
[1748961024000,1.0849,2631.3,2631.0,3.80076839]
[1748961024403,1.0849,2631.3,2631.1,3.80067569]
[1748961024581,1.0849,2631.3,2631.1,3.80058188]
[1748961024906,1.0849,2631.3,2631.2,3.80054727]
[1748961025108,1.0216,2631.9,2631.5,3.80009368]
[1748961025264,1.0216,2631.9,2631.3,3.80040284]
[1748961025606,3.79984939,2631.7,2631.2,3.80048013]
[1748961025802,5.27675602,2631.6,2631.1,3.80067392]
[1748961026176,1.0968,2631.6,2631.2,3.80051539]
[1748961026399,1.0968,2631.6,2630.9,8.10668358]
[1748961026600,1.0968,2631.6,2630.8,3.80103927]
[1748961026601,1.027,2631.2,2630.8,3.80103927]
[1748961026766,1.027,2631.2,2630.9,3.80087422]
[1748961026962,1.027,2631.2,2631.0,3.80074486]
[1748961027468,1.027,2631.2,2631.0,4.18514926]
[1748961027683,1.027,2631.2,2631.1,3.80069172]
[1748961028089,1.027,2631.2,2630.9,11.90761946]
[1748961028294,1.027,2631.2,2630.6,8.10668358]
[1748961028497,1.027,2631.2,2630.9,3.80086037]
[1748961029014,1.81,2631.7,2631.1,3.80069172]
[1748961029306,1.051,2631.4,2631.2,3.80044873]
[1748961029496,1.051,2631.4,2631.0,3.80076903]
[1748961029696,1.051,2631.4,2630.9,11.90765654]
[1748961029999,1.051,2631.4,2631.1,3.80061921]
[1748961030309,1.051,2631.4,2631.2,3.80053899]
[1748961030504,1.051,2631.4,2631.2,3.80054471]
[1748961031324,1.0851,2631.6,2631.3,3.80040284]
[1748961031475,1.0851,2631.6,2631.5,3.800114]
[1748961032198,5.60933036,2632.1,2631.5,3.800114]
[1748961032425,1.0959,2631.9,2631.2,8.10668358]
[1748961032627,3.79970405,2631.8,2631.3,3.80040284]
[1748961032827,3.79970405,2631.8,2631.2,8.10668358]
[1748961032828,1.0959,2631.7,2631.2,3.80053235]
[1748961032999,4.8957995,2631.7,2631.2,3.80053235]
[1748961033610,1.08,2631.4,2630.9,0.37917587]
[1748961033816,1.08,2631.4,2630.5,8.61668358]
[1748961034012,1.08,2631.4,2630.9,3.80089194]
[1748961034013,4.88027251,2631.4,2630.9,3.80089194]
[1748961034245,6.40190021,2631.4,2630.9,3.80089194]
[1748961034556,2.6016277,2631.4,2631.0,3.80073609]
[1748961034729,1.08,2631.4,2630.8,8.10668358]
[1748961034903,1.08,2631.4,2631.2,3.8005346]
[1748961035103,1.08,2631.4,2630.8,12.28275299]
[1748961035304,1.08,2631.4,2631.1,3.80055279]
[1748961035546,1.08,2631.4,2631.2,3.80047721]
[1748961035740,1.08,2631.4,2630.8,12.28275299]
[1748961035900,1.08,2631.4,2630.9,1.2282753]
[1748961036308,1.08,2631.4,2631.2,3.80048583]
[1748961036747,1.08,2631.4,2631.3,3.80040284]
[1748961037051,1.081,2631.7,2631.4,3.80014917]
[1748961038123,1.081,2631.7,2631.3,3.80031738]
[1748961038319,2.22255485,2631.7,2631.3,3.80031738]
[1748961038665,3.80026642,2631.4,2630.8,4.176002]
[1748961038827,1.0288,2631.3,2630.8,4.176002]
[1748961039011,1.0288,2631.3,2630.9,3.80093893]
[1748961039644,1.0288,2631.3,2630.8,0.37496866]
[1748961039845,1.0288,2631.3,2630.9,8.10668358]
[1748961040153,1.0238,2631.5,2631.3,3.80040284]
[1748961040449,1.0238,2631.5,2631.4,3.80025841]
[1748961041455,7.6047,2631.9,2631.4,3.80025841]
[1748961041612,11.40425156,2631.9,2631.4,3.80025841]
[1748961041814,1.0707,2631.9,2631.8,3.79968082]
[1748961042048,1.0289,2632.7,2631.8,0.37996808]
[1748961042257,1.0289,2632.7,2632.3,3.79892131]
[1748961042456,1.0289,2632.7,2632.2,3.79905639]
[1748961042614,1.0289,2632.7,2632.3,3.79891595]
[1748961042814,1.0289,2632.7,2632.0,8.10668358]
[1748961043014,1.0289,2632.7,2632.1,3.79924774]
[1748961043211,1.13601605,2632.6,2632.1,3.79920566]
[1748961043416,1.0289,2632.7,2632.2,3.79899557]
[1748961043654,1.0289,2632.7,2632.3,3.79893086]
[1748961043821,1.0289,2632.7,2632.6,3.79852617]
[1748961044023,1.0289,2632.7,2632.5,3.79867046]
[1748961044219,1.0289,2632.7,2632.4,3.79868757]
[1748961044422,1.0289,2632.7,2632.4,3.79881476]
[1748961045055,1.0289,2632.7,2632.5,3.7986303]
[1748961045236,0.02,2632.9,2632.5,0.75974451]
[1748961045560,0.02,2632.9,2632.8,3.79823761]
[1748961046616,0.02,2633.9,2633.7,3.79685404]
[1748961046866,0.02,2633.9,2633.5,3.79716926]
[1748961047062,0.50163743,2633.9,2633.5,3.79716926]
[1748961047258,0.50163743,2633.9,2633.2,8.10668358]
[1748961047461,0.02,2633.9,2633.5,8.10668358]
[1748961047660,0.02,2633.9,2633.8,11.7967955]
[1748961048163,0.02,2633.9,2633.8,19.90347908]
[1748961048519,0.02,2633.9,2633.7,3.79692429]
[1748961048725,0.02,2633.9,2633.8,3.7967955]
[1748961050966,0.02,2633.9,2633.8,21.21285106]
[1748961051551,0.02,2633.9,2633.8,11.7967955]
[1748961051756,0.02,2633.9,2633.8,8.0]
[1748961052356,0.02,2633.9,2633.7,3.79688216]
[1748961052560,0.02,2633.9,2633.3,4.30741577]
[1748961052774,0.9736,2633.8,2633.4,3.79736928]
[1748961053072,1.45263165,2633.8,2633.2,13.79759237]
[1748961053408,5.24944287,2633.8,2633.4,8.0]
[1748961053898,1.45263165,2633.8,2633.2,8.0]
[1748961054066,0.9736,2633.8,2632.9,8.10668358]
[1748961054273,0.9736,2633.8,2633.6,3.79697832]
[1748961054476,0.9736,2633.8,2633.5,3.79716018]
[1748961054791,0.9736,2633.8,2633.4,3.79730769]
[1748961055109,0.9736,2633.8,2633.5,3.79721108]
[1748961055409,0.02,2633.9,2633.8,3.7967955]
[1748961055557,0.02,2633.9,2633.8,11.90347908]
[1748961056404,0.02,2633.9,2633.8,19.90347908]
[1748961057465,0.02,2633.9,2633.8,11.90347908]
[1748961057667,0.02,2633.9,2633.8,20.45347908]
[1748961057904,0.02,2633.9,2633.8,29.71841778]
[1748961058204,0.02,2633.9,2633.8,26.41241778]
[1748961058807,0.02,2633.9,2633.8,32.93541778]
[1748961059608,1.0487,2634.9,2633.8,32.93541778]
[1748961059609,0.02,2634.9,2634.8,3.79535448]
[1748961059779,4.78133228,2635.7,2634.9,10.0]
[1748961059984,0.9872,2635.7,2635.2,8.0]
[1748961060204,0.9872,2635.7,2634.8,8.48621903]
[1748961060408,0.9864,2635.6,2634.5,3.79571165]
[1748961060566,0.9864,2634.8,2634.7,0.37565896]
[1748961060769,0.9864,2634.8,2634.2,0.55]
[1748961061031,0.9864,2634.8,2634.6,8.0]
[1748961061381,0.9864,2634.8,2634.6,0.3800584]
[1748961061584,3.79556741,2634.7,2634.0,3.79650721]
[1748961061898,1.0415,2634.6,2633.4,9.90868358]
[1748961062061,1.0415,2634.6,2633.7,8.0]
[1748961062272,1.0415,2634.6,2634.1,3.79625309]
[1748961062474,1.0415,2634.6,2634.2,3.79617656]
[1748961062731,1.0415,2634.6,2634.0,8.10668358]
[1748961062909,4.82169511,2635.1,2634.5,3.79565549]
[1748961063083,4.82169511,2635.1,2634.6,3.79563223]
[1748961063281,1.0267,2635.1,2634.4,8.0]
[1748961063614,4.82171258,2635.1,2634.4,11.79586273]
[1748961063815,4.82171258,2635.1,2634.6,8.10668358]
[1748961063816,1.0267,2635.1,2634.6,8.10668358]
[1748961063986,0.9656,2635.6,2634.7,4.60614511]
[1748961064342,0.9656,2635.6,2635.1,3.79479636]
[1748961064632,3.79442014,2635.5,2635.0,3.79502637]
[1748961064825,4.75981207,2635.6,2634.7,8.0]
[1748961065029,4.75981207,2635.6,2634.9,3.79513812]
[1748961065030,3.7944275,2635.5,2634.9,3.79513812]
[1748961065194,4.64985291,2635.5,2634.8,3.79535448]
[1748961065392,0.85542541,2635.5,2634.9,8.10668358]
[1748961065590,0.9656,2635.6,2635.1,11.79484841]
[1748961065815,0.9656,2635.6,2635.0,8.0]
[1748961066126,3.79434642,2635.5,2635.0,3.7949765]
[1748961066285,3.79473246,2635.3,2634.8,3.79527685]
[1748961066490,0.47599464,2635.4,2634.8,8.0]
[1748961066724,0.47599464,2635.4,2634.9,3.79519704]
[1748961066931,0.9656,2635.6,2635.2,3.79474533]
[1748961067127,0.9656,2635.6,2635.1,3.79487548]
[1748961067325,0.9656,2635.6,2635.2,3.79475776]
[1748961067530,0.9656,2635.6,2634.9,8.0]
[1748961067711,0.9656,2635.6,2635.3,3.79460396]
[1748961067906,0.9799,2635.9,2635.5,3.79434642]
[1748961068306,4.77368848,2635.9,2635.4,3.79443862]
[1748961068523,5.81051954,2635.9,2635.4,3.79443862]
[1748961069190,2.01673106,2635.9,2635.3,8.10668358]
[1748961069392,2.01673106,2635.9,2635.4,3.79449039]
[1748961069623,2.01673106,2635.9,2635.4,3.794468]
[1748961069835,0.02,2635.9,2635.7,8.0]
[1748961070035,0.02,2635.9,2635.8,11.79391456]
[1748961070937,0.02,2635.9,2635.8,8.0]
[1748961071643,4.79427976,2635.9,2635.2,3.93888838]
[1748961071846,1.85919295,2635.9,2635.1,9.801]
[1748961072057,3.79429025,2635.6,2635.2,0.37285307]
[1748961072345,3.794009,2635.8,2634.8,16.42268358]
[1748961072505,1.0004,2635.9,2635.1,8.0]
[1748961072506,4.79418849,2635.9,2635.1,8.0]
[1748961072706,0.9895,2635.4,2634.9,3.79521044]
[1748961073014,4.78405448,2635.4,2634.9,0.37576887]
[1748961073215,4.78405448,2635.4,2634.8,3.79532522]
[1748961073423,3.79474608,2635.3,2634.6,3.93548008]
[1748961073606,0.9895,2635.4,2634.8,3.79534891]
[1748961073607,1.46790545,2635.4,2634.8,3.79534891]
[1748961073808,3.79465287,2635.3,2634.8,3.79525175]
[1748961074059,3.79465287,2635.3,2634.9,8.0]
[1748961074421,5.26246094,2635.4,2634.4,2.311]
[1748961074602,5.26246094,2635.4,2634.9,3.79516784]
[1748961074941,5.26243001,2635.4,2634.9,3.79516784]
[1748961075266,0.9895,2635.4,2635.1,3.79487979]
[1748961075411,0.9895,2635.4,2635.1,3.79490976]
[1748961075729,0.9895,2635.4,2634.9,8.10668358]
[1748961075938,0.9839,2635.7,2635.3,3.79454257]
[1748961076135,4.77801314,2635.7,2635.2,11.79474064]
[1748961076312,3.79430363,2635.6,2635.2,8.0]
[1748961076506,0.9839,2635.7,2635.2,3.79475765]
[1748961076738,0.9839,2635.7,2635.1,8.0]
[1748961077013,0.9839,2635.7,2635.1,9.61066836]
[1748961077423,0.9839,2635.7,2635.3,3.79452848]
[1748961077624,4.77799081,2635.7,2635.2,3.79470764]
[1748961078249,0.9839,2635.7,2635.2,3.79469186]
[1748961078448,0.9839,2635.7,2635.3,3.79456224]
[1748961078626,1.46368204,2635.7,2635.1,8.0]
[1748961078835,0.9839,2635.7,2635.1,8.0]
[1748961079057,3.79502082,2635.1,2634.6,3.7955805]
[1748961079226,0.02,2635.9,2634.4,4.67552651]
[1748961079227,6.513,2635.4,2634.4,0.87970502]
[1748961079422,1.037,2634.7,2634.4,0.36970502]
[1748961079660,1.037,2634.7,2634.4,8.0]
[1748961079877,1.037,2634.7,2634.3,8.0]
[1748961080027,1.037,2634.7,2634.1,6.40295745]
[1748961080377,1.037,2634.7,2634.3,3.79605849]
[1748961080659,1.0862,2635.0,2634.8,3.79528105]
[1748961081026,1.0862,2635.0,2634.7,3.7954904]
[1748961081223,1.0862,2635.0,2634.4,0.37960585]
[1748961081518,1.0862,2635.0,2634.8,3.79528691]
[1748961081736,1.0862,2635.0,2634.7,3.79549587]
[1748961081958,1.0862,2635.0,2634.4,0.37960585]
[1748961081959,1.0862,2635.0,2634.8,3.79535387]
[1748961082128,1.0862,2635.0,2634.9,3.79521044]
[1748961082959,1.0862,2635.0,2634.4,0.37960585]
[1748961083164,1.0862,2635.0,2634.2,8.0]
[1748961083336,1.0862,2635.0,2634.7,3.7953968]
[1748961083533,4.88133595,2635.0,2634.5,3.79577812]
[1748961083735,4.88133595,2635.0,2634.6,8.0]
[1748961083981,1.0862,2635.0,2634.1,8.89551073]
[1748961084133,1.0862,2635.0,2634.6,8.0]
[1748961084329,1.0862,2635.0,2634.6,11.7956323]
[1748961084641,3.79559048,2634.7,2634.2,3.79615034]
[1748961084859,3.79599591,2634.4,2633.7,3.79693966]
[1748961085086,1.0253,2634.5,2634.1,3.79635111]
[1748961085376,3.79492697,2635.1,2634.4,3.79593076]
[1748961085525,1.0253,2635.0,2634.1,8.0]
[1748961085721,4.8204366,2635.0,2634.5,3.79578078]
[1748961085926,10.30567954,2635.3,2634.0,8.0]
[1748961086228,0.9856,2634.6,2634.3,3.79606299]
[1748961086942,0.9856,2634.6,2633.8,10.74066927]
[1748961087137,4.78132398,2634.6,2634.1,3.7963528]
[1748961087584,4.78132398,2634.6,2633.8,4.7414452]
[1748961087747,1.0499,2634.5,2634.1,3.7962613]
[1748961088849,1.0499,2634.5,2634.0,3.79646316]
[1748961089160,1.0499,2634.5,2633.9,8.0]
[1748961089322,1.0499,2634.5,2634.4,3.79593076]
[1748961089524,1.0499,2634.5,2633.9,8.0]
[1748961089525,3.79506641,2635.0,2634.3,3.79596074]
[1748961089827,4.99852186,2635.0,2634.5,3.79572237]
[1748961090131,1.0767,2635.1,2634.7,3.79547125]
[1748961090367,4.87163003,2635.1,2634.7,3.79547125]
[1748961090662,4.87163003,2635.1,2634.5,3.7956986]
[1748961090663,1.0767,2635.1,2634.8,3.7952776]
[1748961091166,1.0767,2635.1,2634.5,11.79566478]
[1748961091327,1.0767,2635.1,2634.7,3.7954873]
[1748961091532,3.79506641,2635.0,2634.5,3.79572351]
[1748961091751,1.0767,2635.1,2634.5,3.79572351]
[1748961091926,3.79514219,2635.0,2634.5,3.79572351]
[1748961092945,3.79528117,2634.9,2634.2,9.796]
[1748961093282,1.0455,2634.8,2634.5,3.79572758]
[1748961093634,1.0455,2634.8,2634.4,3.79591615]
[1748961093878,1.0455,2634.8,2634.4,11.79591615]
[1748961094183,1.0455,2634.8,2634.5,8.0]
[1748961094983,1.0794,2634.7,2634.2,1.796]
[1748961095177,3.79580629,2634.5,2634.0,3.7964029]
[1748961095377,3.79574721,2634.6,2634.1,3.79635676]
[1748961096116,1.0625,2634.3,2633.9,3.79656362]
[1748961096400,4.85860176,2634.3,2633.8,12.74138197]
[1748961096609,4.85862169,2634.3,2633.9,3.79663906]
[1748961096777,1.0625,2634.3,2634.1,3.79634214]
[1748961096977,1.0625,2634.3,2633.8,8.94466927]
[1748961096978,1.0625,2634.3,2633.8,0.94466927]
[1748961097179,3.79633293,2634.2,2633.8,8.3853753]
[1748961097402,4.85860914,2634.3,2633.8,8.3853753]
[1748961097403,3.79637992,2634.1,2633.8,0.3853753]
[1748961097606,1.0625,2634.3,2633.5,8.0]
[1748961097779,4.85864446,2634.3,2633.8,3.79667203]
[1748961097979,4.85864446,2634.3,2633.6,3.79701987]
[1748961097980,3.79648719,2634.1,2633.6,3.79701987]
[1748961098194,5.72412838,2634.3,2633.8,3.7966832]
[1748961099115,1.92795809,2634.3,2633.7,8.0]
[1748961099304,3.79634411,2634.2,2633.8,8.0]
[1748961099501,4.79338229,2634.1,2633.7,8.0]
[1748961099704,0.997,2634.1,2633.7,3.7969327]
[1748961099938,0.997,2634.1,2633.6,8.0]
[1748961100082,0.997,2634.1,2633.9,3.79656928]
[1748961100282,0.997,2634.1,2634.0,3.79650721]
[1748961100482,3.7956957,2634.6,2633.8,8.10668358]
[1748961100717,6.88856957,2634.6,2633.8,8.10668358]
[1748961100913,3.79593119,2634.4,2634.0,3.79638696]
[1748961101229,4.85179424,2634.5,2634.0,3.79638696]
[1748961101398,1.0559,2634.5,2634.1,3.79635869]
[1748961101597,1.0559,2634.5,2634.2,3.79615119]
[1748961101812,1.0559,2634.5,2634.1,3.79626127]
[1748961102132,1.0559,2634.5,2634.0,3.79648931]
[1748961102310,1.0559,2634.5,2633.6,9.796]
[1748961102518,4.85176434,2634.5,2633.9,3.79655198]
[1748961102736,6.36740769,2634.5,2634.0,3.79643881]
[1748961103044,3.79643174,2634.1,2633.6,3.79701869]
[1748961103341,3.7964249,2634.1,2633.6,3.79698681]
[1748961103493,4.79654301,2634.2,2633.3,8.304]
[1748961103688,1.0003,2634.0,2633.4,3.79724555]
[1748961104030,3.79716854,2633.6,2633.1,1.796]
[1748961104243,3.79778288,2633.2,2632.8,0.37384948]
[1748961104434,0.9991,2633.5,2632.5,5.59464388]
[1748961104435,0.9991,2633.5,2632.5,1.796]
[1748961104590,3.79741615,2633.4,2632.8,0.37017091]
[1748961104782,3.7977063,2633.2,2632.5,3.79862247]
[1748961104983,4.82847419,2633.1,2632.3,3.79892981]
[1748961105183,11.33644316,2633.1,2632.4,3.79880038]
[1748961107091,4.81132409,2632.9,2632.4,3.79875973]
[1748961107299,1.0132,2632.9,2632.7,3.79828016]
[1748961107622,1.0132,2632.9,2632.3,8.10668358]
[1748961107786,1.0132,2632.9,2632.5,3.79859968]
[1748961107991,1.0132,2632.9,2632.4,1.05193519]
[1748961108213,1.0132,2632.9,2632.5,3.79867046]
[1748961108389,1.0132,2632.9,2632.4,1.05193519]
[1748961108586,1.0132,2632.9,2632.6,3.79845423]
[1748961108987,1.0132,2632.9,2632.2,2.41266836]
[1748961109333,1.0132,2632.9,2632.6,3.79852286]
[1748961109514,1.0132,2632.9,2632.5,3.7986385]
[1748961109724,1.0132,2632.9,2632.1,10.8418945]
[1748961109725,3.79827796,2632.8,2632.3,3.79893759]
[1748961109890,1.0132,2632.9,2632.1,4.19127265]
[1748961109891,4.81137116,2632.9,2632.4,3.79879275]
[1748961110090,3.79824757,2632.8,2632.3,3.79891992]
[1748961110526,4.81136449,2632.9,2632.3,3.79891992]
[1748961110706,2.52503646,2632.9,2632.4,3.79879807]
[1748961110914,6.32320262,2632.9,2632.4,3.79879807]
[1748961111344,2.52503646,2632.9,2632.1,4.19123245]
[1748961111660,6.509,2633.1,2632.1,4.19123245]
[1748961111661,3.79871031,2632.5,2632.1,0.02]
[1748961111812,0.9745,2632.4,2632.1,3.81923435]
[1748961112478,3.7990269,2632.3,2632.1,0.02]
[1748961112915,3.79905173,2632.3,2632.1,0.02]
[1748961113110,3.79910341,2632.2,2632.1,0.02]
[1748961113308,1.23711346,2632.3,2632.1,0.02]
[1748961113677,7.4835,2632.4,2632.1,0.02]
[1748961113882,3.79897695,2632.3,2632.1,0.02]
[1748961114086,7.4835,2632.4,2632.1,0.02]
[1748961114087,11.28232158,2632.4,2632.1,0.02]
[1748961114589,7.4835,2632.4,2632.1,0.02]
[1748961114767,7.4835,2632.4,2632.1,3.81918839]
[1748961115371,0.9745,2632.4,2632.3,3.79895908]
[1748961115735,1.0524,2632.8,2632.4,3.79881476]
[1748961116788,1.0524,2632.8,2632.6,3.79852162]
[1748961117081,1.0524,2632.8,2632.4,3.79876183]
[1748961117286,1.0524,2632.8,2632.5,3.79864786]
[1748961117597,1.0524,2632.8,2632.1,0.78185758]
[1748961117773,1.0524,2632.8,2632.4,3.79873233]
[1748961118156,1.0524,2632.8,2632.3,3.79895908]
[1748961118461,1.0524,2632.8,2632.4,3.79878798]
[1748961118785,1.0524,2632.8,2632.5,3.79859502]
[1748961119196,18.20682232,2633.1,2632.1,0.78185758]
[1748961119197,1.0668,2633.1,2632.1,8.12668358]
[1748961119350,1.0668,2633.1,2632.2,0.81266836]
[1748961119905,1.0668,2633.1,2632.6,3.79840603]
[1748961120203,3.79808236,2633.0,2632.4,3.79868015]
[1748961120364,4.8646675,2633.1,2632.2,4.61175525]
[1748961120562,1.0668,2633.1,2632.3,3.79895908]
[1748961120772,1.0668,2633.1,2632.8,3.7980963]
[1748961121101,1.0668,2633.1,2632.4,8.56784632]
[1748961121304,1.0668,2633.1,2632.2,0.81266836]
[1748961121527,3.79815418,2632.9,2632.4,3.79871822]
[1748961121694,3.79815987,2632.9,2632.4,3.79871822]
[1748961121890,1.0668,2633.1,2632.1,6.528]
[1748961122095,1.0668,2633.1,2632.7,3.79828979]
[1748961122300,1.0668,2633.1,2632.5,8.10668358]
[1748961122664,19.80286643,2634.3,2633.2,3.79757223]
[1748961122665,3.7970183,2633.7,2633.2,3.79757223]
[1748961122802,4.78891176,2633.6,2633.1,3.79770533]
[1748961122987,0.9918,2633.6,2632.9,3.79809335]
[1748961123329,0.9918,2633.6,2632.8,11.9049092]
[1748961123529,1.0376,2633.8,2633.5,3.79710461]
[1748961123678,1.0376,2633.8,2633.1,8.10668358]
[1748961123679,1.32056,2633.8,2633.1,8.10668358]
[1748961124118,1.32056,2633.8,2633.5,3.79714453]
[1748961124432,0.965,2634.0,2633.7,3.79686793]
[1748961124734,0.965,2634.0,2633.3,3.79743859]
[1748961124886,0.965,2634.0,2633.0,8.10668358]
[1748961125087,3.79665504,2633.9,2633.4,3.7972861]
[1748961125283,0.8558117,2633.9,2633.1,13.79768139]
[1748961125592,0.965,2634.0,2633.4,3.79728363]
[1748961125814,3.79687802,2633.8,2633.3,3.79750912]
[1748961125994,1.0633,2633.8,2632.9,3.79800084]
[1748961126194,4.86090303,2633.3,2632.8,3.79816455]
[1748961126418,1.0633,2633.3,2632.9,3.79802274]
[1748961126916,4.86082608,2633.3,2632.8,3.79815728]
[1748961127242,1.0633,2633.3,2633.0,3.79785206]
[1748961127735,1.0633,2633.3,2632.7,3.79838188]
[1748961127945,1.0204,2633.6,2633.2,3.79766064]
[1748961128097,1.0204,2633.6,2633.0,3.79784677]
[1748961128298,1.0204,2633.6,2632.8,3.79817097]
[1748961128299,3.79759897,2633.3,2632.8,3.79817097]
[1748961128547,3.79744987,2633.4,2632.9,3.79801926]
[1748961128843,0.9885,2633.0,2632.3,10.0]
[1748961128986,0.9885,2633.0,2632.5,3.79862021]
[1748961128987,4.7865119,2633.0,2632.5,3.79862021]
[1748961129344,4.7865119,2633.0,2632.2,2.302]
[1748961129345,1.84692316,2633.0,2632.2,3.79910341]
[1748961129639,1.84692316,2633.0,2632.1,0.02]
[1748961129640,0.9885,2633.0,2632.1,0.02]
[1748961129840,4.78652035,2633.0,2632.5,3.79864807]
[1748961129987,0.9885,2633.0,2632.6,3.7985208]
[1748961130339,4.78645128,2633.0,2632.5,3.79859368]
[1748961130686,4.78645128,2633.0,2632.6,3.79851357]
[1748961130881,2.49751439,2633.0,2632.2,13.7990084]
[1748961131127,0.9885,2633.0,2632.7,3.79834544]
[1748961131446,0.9885,2633.0,2632.6,3.79845357]
[1748961131720,0.9885,2633.0,2632.7,3.79830013]
[1748961131921,0.9885,2633.0,2632.7,3.79830574]
[1748961132080,4.78645095,2633.0,2632.2,8.10668358]
[1748961132284,4.78645095,2633.0,2632.1,3.81913911]
[1748961132285,1.0648,2632.6,2632.1,0.02]
[1748961132525,1.0648,2632.6,2632.5,3.79867046]
[1748961132768,1.0648,2632.9,2632.8,3.79823761]
[1748961133283,3.79754484,2633.3,2632.8,3.79817169]
[1748961133488,0.86596107,2633.3,2632.7,3.79830014]
[1748961133738,1.0648,2633.5,2633.1,3.79776237]
[1748961133944,7.5698,2633.5,2632.6,11.90520975]
[1748961134139,7.5698,2633.5,2633.1,3.79771245]
[1748961134441,7.5698,2633.5,2632.9,3.79802018]
[1748961134604,12.87626151,2633.5,2633.0,3.79794859]
[1748961134926,3.79742168,2633.4,2633.0,3.79794606]
[1748961135086,9.07892694,2633.5,2633.0,3.79794606]
[1748961135087,6.3712369,2633.5,2633.0,3.79794606]
[1748961135608,2.57392694,2633.5,2633.1,3.79766597]
[1748961135815,1.0648,2633.5,2633.2,3.79759485]
[1748961136031,1.0648,2633.5,2633.4,3.79737221]
[1748961136322,1.0648,2633.5,2633.3,3.79743572]
[1748961136549,1.0648,2633.5,2633.4,3.79737221]
[1748961137254,1.0648,2633.5,2633.2,3.79764193]
[1748961137255,1.0648,2633.5,2633.3,3.79744718]
[1748961137560,1.0025,2633.8,2633.5,3.797182]
[1748961137711,3.67800947,2633.8,2633.6,3.79703682]
[1748961138052,1.0025,2633.8,2633.5,3.79715473]
[1748961138214,1.0025,2633.8,2633.6,3.79699234]
[1748961138416,1.0025,2633.8,2633.2,0.37702266]
[1748961138614,1.0025,2633.8,2633.2,3.79761542]
[1748961138850,1.0025,2633.8,2633.4,3.79729057]
[1748961139154,0.47992161,2633.7,2633.5,8.0]
[1748961139452,1.0025,2633.8,2633.4,8.0]
[1748961139815,1.0025,2633.8,2633.2,8.0]
[1748961140010,3.79725817,2633.5,2633.1,8.0]
[1748961140217,3.79706751,2633.7,2633.1,11.79780163]
[1748961140425,4.84882901,2633.5,2633.1,8.0]
[1748961140633,4.84879535,2633.5,2633.1,8.0]
[1748961140920,1.0515,2633.5,2633.1,11.79774616]
[1748961141513,1.0515,2633.5,2633.3,8.0]
[1748961141963,1.0515,2633.5,2633.1,8.0]
[1748961142118,1.0515,2633.5,2633.3,8.0]
[1748961142318,1.58434637,2633.5,2633.1,8.0]
[1748961142518,1.0515,2633.5,2633.1,8.0]
[1748961142819,1.0515,2633.5,2633.2,8.0]
[1748961143015,4.84877946,2633.5,2633.0,8.0]
[1748961143252,3.79777196,2633.2,2632.5,6.09658448]
[1748961143554,3.79766742,2633.2,2632.5,5.58660891]
[1748961143759,0.48141674,2633.2,2632.7,3.79837173]
[1748961144152,0.48141674,2633.2,2632.8,8.0]
[1748961144352,0.48141674,2633.2,2632.8,11.79817386]
[1748961144549,4.81389092,2633.4,2632.3,11.90553495]
[1748961144550,1.0165,2633.4,2632.5,8.0]
[1748961144721,6.502,2633.3,2633.0,3.79784819]
[1748961144928,6.502,2633.3,2633.0,3.79782745]
[1748961145235,6.502,2633.3,2632.9,8.0]
[1748961145560,1.0165,2633.4,2632.9,11.79800844]
[1748961145561,7.5185,2633.4,2632.9,11.79800844]
[1748961145760,9.20858916,2633.4,2632.9,11.79800844]
[1748961146367,9.20858916,2633.4,2632.9,3.57019828]
[1748961146572,9.20858916,2633.4,2633.0,3.79790418]
[1748961146728,9.20858916,2633.4,2632.9,3.79801892]
[1748961147786,9.20858916,2633.4,2633.0,3.79791428]
[1748961148143,9.20858916,2633.4,2632.9,3.79802232]
[1748961148337,9.20858916,2633.4,2633.0,3.79793193]
[1748961148538,7.5175,2633.4,2633.1,3.79778594]
[1748961148753,7.5175,2633.4,2633.2,8.0]
[1748961149165,7.5175,2633.4,2633.2,3.79758732]
[1748961149331,1.0165,2633.4,2633.2,3.79758732]
[1748961149729,1.788,2633.5,2633.4,11.79737221]
[1748961150037,1.788,2633.5,2633.4,8.0]
[1748961150430,3.096678,2633.5,2633.4,8.0]